[Event "Titled Tuesday Blitz February 28 Early 2023"]
[White "Mushini Ajay"]
[Black "Malek, Jan"]
[WhiteFideId "35066188"]
[BlackFideId "21864080"]
[WhiteElo "2145"]
[BlackElo "2255"]
[Result "0-1"]
[Round "01"]
[TimeControl "180+2"]
[Date "2023.02.28"]
[WhiteClock "0:00:03"]
[BlackClock "0:00:12"]

1. c4 {[%clk 0:02:21]}  c6 {[%clk 0:02:55]} 2. Nc3 {[%clk 0:02:19]}  d5 {[%clk 0:02:55]} 3. d4 {[%clk 0:02:19]}  Nf6 {[%clk 0:02:52]} 4. Nf3 {[%clk 0:02:18]}  a6 {[%clk 0:02:52]} 5. c5 {[%clk 0:02:15]}  Nbd7 {[%clk 0:02:43]} 6. Bf4 {[%clk 0:02:12]}  b6 {[%clk 0:02:33]} 7. cxb6 {[%clk 0:02:11]}  a5 {[%clk 0:02:33]} 8. e4 {[%clk 0:02:04]}  Qxb6 {[%clk 0:02:30]} 9. exd5 {[%clk 0:01:58]}  Nxd5 {[%clk 0:02:25]} 10. Nxd5 {[%clk 0:01:55]}  cxd5 {[%clk 0:02:26]} 11. Bd3 {[%clk 0:01:52]}  e6 {[%clk 0:02:20]} 12. O-O {[%clk 0:01:50]}  Bd6 {[%clk 0:02:19]} 13. Ne5 {[%clk 0:01:39]}  Bxe5 {[%clk 0:02:14]} 14. dxe5 {[%clk 0:01:28]}  Ba6 {[%clk 0:02:11]} 15. Bxa6 {[%clk 0:01:23]}  Qxa6 {[%clk 0:02:10]} 16. Qg4 {[%clk 0:01:24]}  g6 {[%clk 0:01:29]} 17. Bh6 {[%clk 0:01:13]}  Qc4 {[%clk 0:01:26]} 18. Qg5 {[%clk 0:01:07]}  Qe4 {[%clk 0:01:23]} 19. Rac1 {[%clk 0:00:51]}  Qf5 {[%clk 0:01:12]} 20. Qe3 {[%clk 0:00:20]}  Rg8 {[%clk 0:00:48]} 21. h4 {[%clk 0:00:19]}  Qxe5 {[%clk 0:00:46]} 22. Qd2 {[%clk 0:00:19]}  Qd6 {[%clk 0:00:42]} 23. Rfe1 {[%clk 0:00:19]}  f6 {[%clk 0:00:41]} 24. Bf4 {[%clk 0:00:18]}  e5 {[%clk 0:00:40]} 25. Bg3 {[%clk 0:00:18]}  Kf7 {[%clk 0:00:40]} 26. f4 {[%clk 0:00:19]}  Rge8 {[%clk 0:00:29]} 27. fxe5 {[%clk 0:00:18]}  fxe5 {[%clk 0:00:30]} 28. Qh6 {[%clk 0:00:17]}  Kg8 {[%clk 0:00:29]} 29. h5 {[%clk 0:00:16]}  Rac8 {[%clk 0:00:26]} 30. hxg6 {[%clk 0:00:16]}  hxg6 {[%clk 0:00:22]} 31. Rxc8 {[%clk 0:00:14]}  Rxc8 {[%clk 0:00:23]} 32. Rf1 {[%clk 0:00:12]}  Rf8 {[%clk 0:00:21]} 33. Rc1 {[%clk 0:00:08]}  d4 {[%clk 0:00:17]} 34. Bh4 {[%clk 0:00:05]}  d3 {[%clk 0:00:16]} 35. Qd2 {[%clk 0:00:04]}  e4 {[%clk 0:00:15]} 36. Bf2 {[%clk 0:00:04]}  Qd5 {[%clk 0:00:13]} 37. Qh6 {[%clk 0:00:04]}  Qf5 {[%clk 0:00:13]} 38. Rf1 {[%clk 0:00:03]}  Ne5 {[%clk 0:00:12]} 0-1


[Site "https://www.chess.com"]

[Event "Titled Tuesday Blitz February 28 Early 2023"]
[White "Matinian, Nikita"]
[Black "Kaganskiy, Gleb"]
[WhiteFideId "24129100"]
[BlackFideId "4132025"]
[WhiteElo "2422"]
[BlackElo "2165"]
[Result "1-0"]
[Round "01"]
[TimeControl "180+2"]
[Date "2023.02.28"]
[WhiteClock "0:01:08"]
[BlackClock "0:00:16"]

1. e4 {[%clk 0:02:55]}  e6 {[%clk 0:02:59]} 2. d4 {[%clk 0:02:54]}  d5 {[%clk 0:02:59]} 3. Nc3 {[%clk 0:02:55]}  Bb4 {[%clk 0:02:50]} 4. Ne2 {[%clk 0:02:50]}  dxe4 {[%clk 0:02:48]} 5. a3 {[%clk 0:02:50]}  Bxc3+ {[%clk 0:02:47]} 6. Nxc3 {[%clk 0:02:51]}  Nc6 {[%clk 0:02:47]} 7. Bb5 {[%clk 0:02:50]}  Ne7 {[%clk 0:02:40]} 8. Bg5 {[%clk 0:02:50]}  O-O {[%clk 0:02:35]} 9. Bxc6 {[%clk 0:02:49]}  bxc6 {[%clk 0:02:33]} 10. Nxe4 {[%clk 0:02:36]}  Rb8 {[%clk 0:02:25]} 11. Bxe7 {[%clk 0:02:20]}  Qxe7 {[%clk 0:02:24]} 12. b4 {[%clk 0:02:18]}  Ba6 {[%clk 0:02:22]} 13. Nc5 {[%clk 0:02:15]}  Bc4 {[%clk 0:02:18]} 14. Qh5 {[%clk 0:02:13]}  Rfd8 {[%clk 0:02:06]} 15. c3 {[%clk 0:02:13]}  Rd5 {[%clk 0:02:04]} 16. Qf3 {[%clk 0:01:56]}  e5 {[%clk 0:02:03]} 17. O-O-O {[%clk 0:01:56]}  a5 {[%clk 0:01:49]} 18. Rhe1 {[%clk 0:01:54]}  axb4 {[%clk 0:01:42]} 19. cxb4 {[%clk 0:01:54]}  Qg5+ {[%clk 0:01:38]} 20. Qe3 {[%clk 0:01:54]}  Qxg2 {[%clk 0:01:15]} 21. dxe5 {[%clk 0:01:31]}  h6 {[%clk 0:01:01]} 22. Qg3 {[%clk 0:01:22]}  Qxg3 {[%clk 0:00:57]} 23. hxg3 {[%clk 0:01:22]}  g5 {[%clk 0:00:48]} 24. Kb2 {[%clk 0:01:19]}  Rxc5 {[%clk 0:00:46]} 25. Rc1 {[%clk 0:01:19]}  Rd5 {[%clk 0:00:38]} 26. Rxc4 {[%clk 0:01:18]}  c5 {[%clk 0:00:36]} 27. Kc3 {[%clk 0:01:15]}  Re8 {[%clk 0:00:24]} 28. Rxc5 {[%clk 0:01:13]}  Rxc5+ {[%clk 0:00:22]} 29. bxc5 {[%clk 0:01:14]}  Ra8 {[%clk 0:00:22]} 30. Kb4 {[%clk 0:01:13]}  Rb8+ {[%clk 0:00:22]} 31. Kc4 {[%clk 0:01:14]}  Ra8 {[%clk 0:00:22]} 32. Ra1 {[%clk 0:01:14]}  Kf8 {[%clk 0:00:19]} 33. a4 {[%clk 0:01:12]}  Ke7 {[%clk 0:00:20]} 34. c6 {[%clk 0:01:13]}  Ke6 {[%clk 0:00:20]} 35. a5 {[%clk 0:01:03]}  Kxe5 {[%clk 0:00:19]} 36. Kc5 {[%clk 0:01:03]}  Ra6 {[%clk 0:00:17]} 37. Kb5 {[%clk 0:01:03]}  Ra7 {[%clk 0:00:17]} 38. a6 {[%clk 0:01:03]}  Kd6 {[%clk 0:00:16]} 39. Rd1+ {[%clk 0:01:03]}  Ke6 {[%clk 0:00:16]} 40. Rd8 {[%clk 0:01:03]}  f5 {[%clk 0:00:13]} 41. Rh8 {[%clk 0:01:03]}  Kd5 {[%clk 0:00:12]} 42. Rxh6 {[%clk 0:01:02]}  Ke4 {[%clk 0:00:11]} 43. Rf6 {[%clk 0:01:00]}  f4 {[%clk 0:00:11]} 44. gxf4 {[%clk 0:01:00]}  gxf4 {[%clk 0:00:12]} 45. Rf8 {[%clk 0:01:01]}  f3 {[%clk 0:00:10]} 46. Rb8 {[%clk 0:01:00]}  Kd3 {[%clk 0:00:10]} 47. Rb7 {[%clk 0:01:01]}  Ra8 {[%clk 0:00:10]} 48. Rxc7 {[%clk 0:01:01]}  Ke2 {[%clk 0:00:11]} 49. a7 {[%clk 0:01:00]}  Kxf2 {[%clk 0:00:11]} 50. Kb6 {[%clk 0:01:01]}  Ke2 {[%clk 0:00:10]} 51. Kb7 {[%clk 0:01:02]}  Rxa7+ {[%clk 0:00:09]} 52. Kxa7 {[%clk 0:01:02]}  f2 {[%clk 0:00:10]} 53. Re7+ {[%clk 0:01:02]}  Kd2 {[%clk 0:00:10]} 54. Rf7 {[%clk 0:01:03]}  Ke1 {[%clk 0:00:10]} 55. c7 {[%clk 0:01:03]}  f1=Q {[%clk 0:00:10]} 56. Rxf1+ {[%clk 0:01:03]}  Kxf1 {[%clk 0:00:10]} 57. c8=Q {[%clk 0:01:04]}  Ke2 {[%clk 0:00:10]} 58. Kb6 {[%clk 0:01:05]}  Kf3 {[%clk 0:00:11]} 59. Kc5 {[%clk 0:01:06]}  Kf4 {[%clk 0:00:12]} 60. Kd4 {[%clk 0:01:06]}  Kg3 {[%clk 0:00:13]} 61. Qf8 {[%clk 0:01:06]}  Kh2 {[%clk 0:00:14]} 62. Ke3 {[%clk 0:01:07]}  Kg1 {[%clk 0:00:14]} 63. Qf2+ {[%clk 0:01:06]}  Kh1 {[%clk 0:00:15]} 64. Qd2 {[%clk 0:01:07]}  Kg1 {[%clk 0:00:15]} 65. Kf3 {[%clk 0:01:08]}  Kh1 {[%clk 0:00:16]} 66. Qg2# {[%clk 0:01:08]} 1-0


[Site "https://www.chess.com"]

[Event "Titled Tuesday Blitz February 28 Early 2023"]
[White "Jovic, Stanoje"]
[Black "Dehtiarov, Roman"]
[WhiteFideId "905020"]
[BlackFideId "14186640"]
[WhiteElo "2236"]
[BlackElo "2162"]
[Result "1-0"]
[Round "01"]
[TimeControl "180+2"]
[Date "2023.02.28"]
[WhiteClock "0:01:16"]
[BlackClock "0:01:31"]

1. c4 {[%clk 0:02:59]}  e5 {[%clk 0:02:59]} 2. g3 {[%clk 0:02:58]}  Nc6 {[%clk 0:03:00]} 3. Bg2 {[%clk 0:02:58]}  Nf6 {[%clk 0:03:00]} 4. Nf3 {[%clk 0:02:57]}  Bc5 {[%clk 0:03:01]} 5. O-O {[%clk 0:02:57]}  O-O {[%clk 0:03:01]} 6. Nxe5 {[%clk 0:02:57]}  Nxe5 {[%clk 0:03:02]} 7. d4 {[%clk 0:02:57]}  Bd6 {[%clk 0:02:54]} 8. c5 {[%clk 0:02:57]}  Bxc5 {[%clk 0:02:42]} 9. dxe5 {[%clk 0:02:54]}  Ne8 {[%clk 0:02:42]} 10. Nc3 {[%clk 0:02:50]}  d6 {[%clk 0:02:42]} 11. Ne4 {[%clk 0:02:35]}  Qe7 {[%clk 0:02:39]} 12. Nxc5 {[%clk 0:02:34]}  dxc5 {[%clk 0:02:40]} 13. f4 {[%clk 0:02:30]}  c6 {[%clk 0:02:39]} 14. Qc2 {[%clk 0:02:25]}  f5 {[%clk 0:02:36]} 15. Be3 {[%clk 0:02:21]}  b6 {[%clk 0:02:33]} 16. Bxc6 {[%clk 0:02:20]}  Rb8 {[%clk 0:02:33]} 17. Rfd1 {[%clk 0:02:15]}  Be6 {[%clk 0:02:32]} 18. Bd5 {[%clk 0:02:08]}  Nc7 {[%clk 0:02:26]} 19. Bxe6+ {[%clk 0:02:07]}  Nxe6 {[%clk 0:02:27]} 20. Rd6 {[%clk 0:02:05]}  Rbd8 {[%clk 0:02:10]} 21. Rad1 {[%clk 0:02:05]}  Rxd6 {[%clk 0:02:10]} 22. Rxd6 {[%clk 0:02:04]}  Rd8 {[%clk 0:02:11]} 23. Qd3 {[%clk 0:02:00]}  Rxd6 {[%clk 0:02:10]} 24. exd6 {[%clk 0:01:55]}  Qd7 {[%clk 0:02:10]} 25. Qd5 {[%clk 0:01:49]}  g6 {[%clk 0:02:09]} 26. h4 {[%clk 0:01:44]}  h5 {[%clk 0:02:09]} 27. a3 {[%clk 0:01:39]}  Kg7 {[%clk 0:02:01]} 28. b4 {[%clk 0:01:37]}  cxb4 {[%clk 0:01:52]} 29. axb4 {[%clk 0:01:37]}  Kf7 {[%clk 0:01:46]} 30. b5 {[%clk 0:01:23]}  Ke8 {[%clk 0:01:35]} 31. Bc1 {[%clk 0:01:17]}  Nc5 {[%clk 0:01:31]} 32. Qg8# {[%clk 0:01:16]} 1-0


[Site "https://www.chess.com"]

[Event "Titled Tuesday Blitz February 28 Early 2023"]
[White "Subelj, Jan"]
[Black "Van Dael, Siem"]
[WhiteFideId "14618583"]
[BlackFideId "1049771"]
[WhiteElo "2480"]
[BlackElo "2336"]
[Result "1-0"]
[Round "01"]
[TimeControl "180+2"]
[Date "2023.02.28"]
[WhiteClock "0:01:06"]
[BlackClock "0:00:01"]

1. d4 {[%clk 0:02:59]}  Nf6 {[%clk 0:02:41]} 2. Nf3 {[%clk 0:02:59]}  g6 {[%clk 0:02:40]} 3. Bf4 {[%clk 0:02:57]}  Bg7 {[%clk 0:02:41]} 4. Nbd2 {[%clk 0:02:57]}  d5 {[%clk 0:02:40]} 5. e3 {[%clk 0:02:55]}  O-O {[%clk 0:02:39]} 6. Be2 {[%clk 0:02:54]}  b6 {[%clk 0:02:35]} 7. O-O {[%clk 0:02:53]}  Bb7 {[%clk 0:02:32]} 8. c4 {[%clk 0:02:49]}  e6 {[%clk 0:02:24]} 9. Rc1 {[%clk 0:02:44]}  c5 {[%clk 0:02:19]} 10. dxc5 {[%clk 0:02:43]}  bxc5 {[%clk 0:02:18]} 11. cxd5 {[%clk 0:02:43]}  Nxd5 {[%clk 0:02:13]} 12. Be5 {[%clk 0:02:42]}  Nd7 {[%clk 0:02:06]} 13. Bxg7 {[%clk 0:02:41]}  Kxg7 {[%clk 0:02:07]} 14. Nc4 {[%clk 0:02:26]}  Rb8 {[%clk 0:02:01]} 15. b3 {[%clk 0:02:21]}  Qe7 {[%clk 0:01:56]} 16. Qc2 {[%clk 0:02:20]}  N7b6 {[%clk 0:01:44]} 17. Rfd1 {[%clk 0:02:18]}  Rfc8 {[%clk 0:01:39]} 18. e4 {[%clk 0:02:00]}  Nb4 {[%clk 0:01:25]} 19. Qb2+ {[%clk 0:01:58]}  f6 {[%clk 0:01:25]} 20. Nd6 {[%clk 0:01:55]}  Rd8 {[%clk 0:01:11]} 21. e5 {[%clk 0:01:52]}  f5 {[%clk 0:01:09]} 22. Rxc5 {[%clk 0:01:50]}  Be4 {[%clk 0:00:54]} 23. Rdc1 {[%clk 0:01:39]}  N6d5 {[%clk 0:00:42]} 24. Nd4 {[%clk 0:01:28]}  Bxg2 {[%clk 0:00:25]} 25. Kxg2 {[%clk 0:01:25]}  Nd3 {[%clk 0:00:17]} 26. Bxd3 {[%clk 0:01:20]}  Nf4+ {[%clk 0:00:18]} 27. Kh1 {[%clk 0:01:18]}  Nxd3 {[%clk 0:00:16]} 28. Rc7 {[%clk 0:01:17]}  Rd7 {[%clk 0:00:16]} 29. Rxd7 {[%clk 0:01:13]}  Qxd7 {[%clk 0:00:17]} 30. Qd2 {[%clk 0:01:11]}  Nxc1 {[%clk 0:00:15]} 31. Qxc1 {[%clk 0:01:12]}  Rb6 {[%clk 0:00:05]} 32. Qc4 {[%clk 0:01:07]}  Kh6 {[%clk 0:00:01]} 33. Nxe6 {[%clk 0:01:06]} 1-0


[Site "https://www.chess.com"]

[Event "Titled Tuesday Blitz February 28 Early 2023"]
[White "Gatterer, Florian"]
[Black "Darini, Pouria"]
[WhiteFideId "811688"]
[BlackFideId "12502200"]
[WhiteElo "2221"]
[BlackElo "2482"]
[Result "0-1"]
[Round "01"]
[TimeControl "180+2"]
[Date "2023.02.28"]
[WhiteClock "0:00:27"]
[BlackClock "0:00:48"]

1. c4 {[%clk 0:03:00]}  c5 {[%clk 0:02:59]} 2. Nf3 {[%clk 0:02:56]}  Nc6 {[%clk 0:03:00]} 3. Nc3 {[%clk 0:02:56]}  Nf6 {[%clk 0:03:00]} 4. g3 {[%clk 0:02:54]}  d5 {[%clk 0:02:59]} 5. cxd5 {[%clk 0:02:53]}  Nxd5 {[%clk 0:03:00]} 6. Bg2 {[%clk 0:02:53]}  Nc7 {[%clk 0:03:01]} 7. O-O {[%clk 0:02:52]}  e5 {[%clk 0:03:01]} 8. a3 {[%clk 0:02:50]}  f6 {[%clk 0:02:58]} 9. d3 {[%clk 0:02:48]}  Be6 {[%clk 0:02:56]} 10. Bd2 {[%clk 0:02:43]}  Be7 {[%clk 0:02:55]} 11. Rc1 {[%clk 0:02:41]}  O-O {[%clk 0:02:55]} 12. Ne4 {[%clk 0:02:41]}  Na6 {[%clk 0:02:49]} 13. Be3 {[%clk 0:02:37]}  Nd4 {[%clk 0:02:46]} 14. Bxd4 {[%clk 0:02:26]}  cxd4 {[%clk 0:02:46]} 15. Ned2 {[%clk 0:02:10]}  Nc7 {[%clk 0:02:32]} 16. Ne1 {[%clk 0:02:09]}  Nd5 {[%clk 0:02:31]} 17. Nc4 {[%clk 0:02:04]}  Rc8 {[%clk 0:02:25]} 18. e4 {[%clk 0:01:54]}  dxe3 {[%clk 0:02:25]} 19. Nxe3 {[%clk 0:01:52]}  Nxe3 {[%clk 0:02:12]} 20. fxe3 {[%clk 0:01:50]}  Qb6 {[%clk 0:02:12]} 21. d4 {[%clk 0:01:29]}  Rxc1 {[%clk 0:02:11]} 22. Qxc1 {[%clk 0:01:28]}  exd4 {[%clk 0:02:12]} 23. exd4 {[%clk 0:01:29]}  Qxd4+ {[%clk 0:02:13]} 24. Kh1 {[%clk 0:01:29]}  b6 {[%clk 0:02:07]} 25. Nf3 {[%clk 0:01:24]}  Qc4 {[%clk 0:02:07]} 26. Qe1 {[%clk 0:01:08]}  Bc5 {[%clk 0:01:46]} 27. Nd2 {[%clk 0:01:03]}  Qa2 {[%clk 0:01:46]} 28. Ne4 {[%clk 0:01:03]}  Bf7 {[%clk 0:01:35]} 29. Nxc5 {[%clk 0:01:02]}  bxc5 {[%clk 0:01:35]} 30. Qc3 {[%clk 0:01:02]}  c4 {[%clk 0:01:28]} 31. h4 {[%clk 0:01:00]}  Rb8 {[%clk 0:01:27]} 32. Rf2 {[%clk 0:00:59]}  Qb3 {[%clk 0:01:23]} 33. Qd4 {[%clk 0:00:58]}  Qb6 {[%clk 0:01:19]} 34. Qf4 {[%clk 0:00:53]}  Re8 {[%clk 0:01:14]} 35. Kh2 {[%clk 0:00:52]}  h6 {[%clk 0:01:14]} 36. Bh3 {[%clk 0:00:45]}  Qe3 {[%clk 0:01:13]} 37. Qxe3 {[%clk 0:00:37]}  Rxe3 {[%clk 0:01:12]} 38. Rc2 {[%clk 0:00:37]}  Rb3 {[%clk 0:00:49]} 39. Bf1 {[%clk 0:00:35]}  c3 {[%clk 0:00:50]} 40. bxc3 {[%clk 0:00:32]}  Rxa3 {[%clk 0:00:50]} 41. c4 {[%clk 0:00:32]}  Kf8 {[%clk 0:00:47]} 42. c5 {[%clk 0:00:32]}  Ra2 {[%clk 0:00:46]} 43. Rxa2 {[%clk 0:00:30]}  Bxa2 {[%clk 0:00:47]} 44. c6 {[%clk 0:00:30]}  Ke7 {[%clk 0:00:48]} 45. Bg2 {[%clk 0:00:29]}  Kd6 {[%clk 0:00:47]} 46. Kg1 {[%clk 0:00:29]}  Bc4 {[%clk 0:00:47]} 47. Kf2 {[%clk 0:00:29]}  Bb5 {[%clk 0:00:47]} 48. c7 {[%clk 0:00:29]}  Kxc7 {[%clk 0:00:47]} 49. Ke3 {[%clk 0:00:30]}  Bc6 {[%clk 0:00:47]} 50. Bf1 {[%clk 0:00:30]}  a5 {[%clk 0:00:47]} 51. Kd4 {[%clk 0:00:30]}  Kd6 {[%clk 0:00:48]} 52. Kc3 {[%clk 0:00:31]}  Kc5 {[%clk 0:00:48]} 53. Bd3 {[%clk 0:00:30]}  Bd5 {[%clk 0:00:48]} 54. Bb1 {[%clk 0:00:30]}  a4 {[%clk 0:00:47]} 55. Bg6 {[%clk 0:00:30]}  a3 {[%clk 0:00:47]} 56. g4 {[%clk 0:00:26]}  a2 {[%clk 0:00:47]} 57. Kb2 {[%clk 0:00:27]}  Kd4 {[%clk 0:00:48]} 0-1


[Site "https://www.chess.com"]

[Event "Titled Tuesday Blitz February 28 Early 2023"]
[White "Csonka, Balazs"]
[Black "Bykovskiy, Oleg"]
[WhiteFideId "742910"]
[BlackFideId "14129825"]
[WhiteElo "2404"]
[BlackElo "2111"]
[Result "1-0"]
[Round "01"]
[TimeControl "180+2"]
[Date "2023.02.28"]
[WhiteClock "0:00:22"]
[BlackClock "0:00:07"]

1. e4 {[%clk 0:03:00]}  d6 {[%clk 0:02:59]} 2. d4 {[%clk 0:02:59]}  Nf6 {[%clk 0:03:00]} 3. Nc3 {[%clk 0:02:59]}  e5 {[%clk 0:03:00]} 4. Nf3 {[%clk 0:02:48]}  Nbd7 {[%clk 0:02:59]} 5. g4 {[%clk 0:02:48]}  h6 {[%clk 0:02:56]} 6. Rg1 {[%clk 0:02:43]}  c6 {[%clk 0:02:49]} 7. h4 {[%clk 0:02:42]}  exd4 {[%clk 0:02:07]} 8. Nxd4 {[%clk 0:02:37]}  Nc5 {[%clk 0:01:57]} 9. Qe2 {[%clk 0:02:34]}  Qe7 {[%clk 0:01:36]} 10. f3 {[%clk 0:02:30]}  Bd7 {[%clk 0:01:17]} 11. Be3 {[%clk 0:02:07]}  O-O-O {[%clk 0:01:17]} 12. O-O-O {[%clk 0:02:07]}  g6 {[%clk 0:01:11]} 13. Nb3 {[%clk 0:01:44]}  Nxb3+ {[%clk 0:01:08]} 14. axb3 {[%clk 0:01:45]}  Kb8 {[%clk 0:01:03]} 15. Qf2 {[%clk 0:01:44]}  c5 {[%clk 0:00:49]} 16. g5 {[%clk 0:01:36]}  hxg5 {[%clk 0:00:45]} 17. hxg5 {[%clk 0:01:31]}  Nh5 {[%clk 0:00:45]} 18. Bc4 {[%clk 0:00:40]}  Be6 {[%clk 0:00:29]} 19. Nd5 {[%clk 0:00:40]}  Bxd5 {[%clk 0:00:29]} 20. Bxd5 {[%clk 0:00:34]}  Bg7 {[%clk 0:00:24]} 21. b4 {[%clk 0:00:30]}  Qe5 {[%clk 0:00:18]} 22. c3 {[%clk 0:00:30]}  cxb4 {[%clk 0:00:08]} 23. Bxa7+ {[%clk 0:00:31]}  Ka8 {[%clk 0:00:09]} 24. Qb6 {[%clk 0:00:25]}  bxc3 {[%clk 0:00:07]} 25. Bxb7# {[%clk 0:00:22]} 1-0


[Site "https://www.chess.com"]

[Event "Titled Tuesday Blitz February 28 Early 2023"]
[White "Llanos, Guillermo"]
[Black "Karthik Rajaa"]
[WhiteFideId "100358"]
[BlackFideId "25035215"]
[WhiteElo "2225"]
[BlackElo "2215"]
[Result "0-1"]
[Round "01"]
[TimeControl "180+2"]
[Date "2023.02.28"]
[WhiteClock "0:00:55"]
[BlackClock "0:00:31"]

1. Nf3 {[%clk 0:02:55]}  Nf6 {[%clk 0:02:59]} 2. c4 {[%clk 0:02:54]}  g6 {[%clk 0:02:59]} 3. Nc3 {[%clk 0:02:53]}  Bg7 {[%clk 0:02:59]} 4. e4 {[%clk 0:02:53]}  d6 {[%clk 0:02:41]} 5. d4 {[%clk 0:02:52]}  O-O {[%clk 0:02:41]} 6. Be2 {[%clk 0:02:52]}  Nbd7 {[%clk 0:02:40]} 7. O-O {[%clk 0:02:50]}  e5 {[%clk 0:02:40]} 8. Be3 {[%clk 0:02:48]}  Qe7 {[%clk 0:02:38]} 9. Qc2 {[%clk 0:02:44]}  c6 {[%clk 0:02:37]} 10. d5 {[%clk 0:02:43]}  c5 {[%clk 0:02:34]} 11. Nd2 {[%clk 0:02:43]}  Kh8 {[%clk 0:02:32]} 12. a3 {[%clk 0:02:41]}  Ng8 {[%clk 0:02:31]} 13. b4 {[%clk 0:02:41]}  b6 {[%clk 0:02:30]} 14. Rab1 {[%clk 0:02:39]}  Bh6 {[%clk 0:02:21]} 15. Bxh6 {[%clk 0:02:38]}  Nxh6 {[%clk 0:02:22]} 16. f3 {[%clk 0:02:29]}  f5 {[%clk 0:02:15]} 17. Nb5 {[%clk 0:02:22]}  Nf6 {[%clk 0:02:13]} 18. bxc5 {[%clk 0:02:20]}  bxc5 {[%clk 0:02:13]} 19. Bd3 {[%clk 0:02:13]}  f4 {[%clk 0:02:08]} 20. Rb2 {[%clk 0:02:07]}  g5 {[%clk 0:02:05]} 21. Rfb1 {[%clk 0:02:02]}  g4 {[%clk 0:02:04]} 22. Bf1 {[%clk 0:01:56]}  Nf7 {[%clk 0:02:01]} 23. Nb3 {[%clk 0:01:47]}  a5 {[%clk 0:01:57]} 24. Nc3 {[%clk 0:01:43]}  Ng5 {[%clk 0:01:49]} 25. Qe2 {[%clk 0:01:36]}  Rg8 {[%clk 0:01:46]} 26. Kh1 {[%clk 0:01:35]}  Qg7 {[%clk 0:01:39]} 27. Nd2 {[%clk 0:01:33]}  gxf3 {[%clk 0:01:32]} 28. Nxf3 {[%clk 0:01:31]}  Nxf3 {[%clk 0:01:14]} 29. Qxf3 {[%clk 0:01:31]}  Bg4 {[%clk 0:01:12]} 30. Qf2 {[%clk 0:01:30]}  Qh6 {[%clk 0:01:06]} 31. Kg1 {[%clk 0:01:21]}  Bd7 {[%clk 0:00:39]} 32. Rb7 {[%clk 0:01:16]}  Ng4 {[%clk 0:00:37]} 33. h3 {[%clk 0:01:01]}  Nxf2 {[%clk 0:00:37]} 34. Kxf2 {[%clk 0:01:02]}  Qh4+ {[%clk 0:00:35]} 35. Ke2 {[%clk 0:01:01]}  Bc8 {[%clk 0:00:31]} 36. Rf7 {[%clk 0:00:55]}  Qh5+ {[%clk 0:00:31]} 0-1


[Site "https://www.chess.com"]

[Event "Titled Tuesday Blitz February 28 Early 2023"]
[White "Jenkins, Drake"]
[Black "Rosen, Eric"]
[WhiteFideId "2022397"]
[BlackFideId "2032562"]
[WhiteElo "2357"]
[BlackElo "2359"]
[Result "0-1"]
[Round "01"]
[TimeControl "180+2"]
[Date "2023.02.28"]
[WhiteClock "0:00:01"]
[BlackClock "0:00:32"]

1. Nf3 {[%clk 0:02:59]}  d5 {[%clk 0:02:59]} 2. c4 {[%clk 0:02:59]}  e6 {[%clk 0:02:58]} 3. g3 {[%clk 0:02:59]}  Nf6 {[%clk 0:02:58]} 4. Bg2 {[%clk 0:02:59]}  dxc4 {[%clk 0:02:57]} 5. a4 {[%clk 0:02:57]}  Nc6 {[%clk 0:02:55]} 6. O-O {[%clk 0:02:57]}  Bd6 {[%clk 0:02:52]} 7. Na3 {[%clk 0:02:56]}  Na5 {[%clk 0:02:48]} 8. Qc2 {[%clk 0:02:52]}  e5 {[%clk 0:02:40]} 9. Nxc4 {[%clk 0:02:50]}  Nxc4 {[%clk 0:02:40]} 10. Qxc4 {[%clk 0:02:51]}  Be6 {[%clk 0:02:41]} 11. Qb5+ {[%clk 0:02:50]}  Qd7 {[%clk 0:02:35]} 12. Qxb7 {[%clk 0:02:16]}  O-O {[%clk 0:02:35]} 13. Ng5 {[%clk 0:02:17]}  Bg4 {[%clk 0:02:24]} 14. Re1 {[%clk 0:02:00]}  h6 {[%clk 0:02:21]} 15. Ne4 {[%clk 0:01:59]}  Nxe4 {[%clk 0:02:13]} 16. Qxe4 {[%clk 0:01:57]}  Rab8 {[%clk 0:02:07]} 17. d3 {[%clk 0:01:31]}  Rb4 {[%clk 0:01:44]} 18. Qc6 {[%clk 0:01:26]}  Qe7 {[%clk 0:01:42]} 19. h3 {[%clk 0:01:21]}  Bd7 {[%clk 0:01:40]} 20. Qc2 {[%clk 0:01:09]}  Rfb8 {[%clk 0:01:37]} 21. a5 {[%clk 0:00:46]}  h5 {[%clk 0:01:34]} 22. h4 {[%clk 0:00:39]}  Be6 {[%clk 0:01:27]} 23. a6 {[%clk 0:00:30]}  Qf6 {[%clk 0:00:55]} 24. Bb7 {[%clk 0:00:23]}  Qg6 {[%clk 0:00:46]} 25. Kh2 {[%clk 0:00:06]}  Rxh4+ {[%clk 0:00:30]} 26. gxh4 {[%clk 0:00:05]}  e4+ {[%clk 0:00:31]} 27. Kh1 {[%clk 0:00:03]}  Qg4 {[%clk 0:00:31]} 28. Bg5 {[%clk 0:00:01]}  Qh3+ {[%clk 0:00:32]} 0-1


[Site "https://www.chess.com"]

[Event "Titled Tuesday Blitz February 28 Early 2023"]
[White "Averjanov, Alexey"]
[Black "Rangel, Daniel"]
[WhiteFideId "14109867"]
[BlackFideId "2124475"]
[WhiteElo "2661"]
[BlackElo "2256"]
[Result "0-1"]
[Round "01"]
[TimeControl "180+2"]
[Date "2023.02.28"]
[WhiteClock "0:00:16"]
[BlackClock "0:00:31"]

1. d4 {[%clk 0:02:58]}  Nf6 {[%clk 0:02:59]} 2. c4 {[%clk 0:02:58]}  e6 {[%clk 0:03:00]} 3. Nf3 {[%clk 0:02:58]}  d5 {[%clk 0:02:59]} 4. e3 {[%clk 0:02:57]}  Be7 {[%clk 0:02:58]} 5. Nbd2 {[%clk 0:02:57]}  O-O {[%clk 0:02:58]} 6. Bd3 {[%clk 0:02:57]}  a6 {[%clk 0:02:58]} 7. O-O {[%clk 0:02:57]}  dxc4 {[%clk 0:02:56]} 8. Nxc4 {[%clk 0:02:58]}  c5 {[%clk 0:02:55]} 9. dxc5 {[%clk 0:02:57]}  Bxc5 {[%clk 0:02:55]} 10. a3 {[%clk 0:02:56]}  b5 {[%clk 0:02:53]} 11. Nce5 {[%clk 0:02:56]}  Bb7 {[%clk 0:02:54]} 12. b4 {[%clk 0:02:55]}  Bb6 {[%clk 0:02:52]} 13. Bb2 {[%clk 0:02:55]}  Nc6 {[%clk 0:02:49]} 14. Nxc6 {[%clk 0:02:53]}  Bxc6 {[%clk 0:02:50]} 15. Bxf6 {[%clk 0:02:48]}  gxf6 {[%clk 0:02:37]} 16. Bxh7+ {[%clk 0:02:48]}  Kg7 {[%clk 0:02:36]} 17. Bc2 {[%clk 0:02:36]}  Qc7 {[%clk 0:02:27]} 18. Rc1 {[%clk 0:02:31]}  Rad8 {[%clk 0:02:22]} 19. Qe2 {[%clk 0:02:29]}  Qb7 {[%clk 0:02:17]} 20. Rfd1 {[%clk 0:02:17]}  Bd5 {[%clk 0:02:14]} 21. Ne1 {[%clk 0:02:07]}  f5 {[%clk 0:02:08]} 22. Qh5 {[%clk 0:02:01]}  Qe7 {[%clk 0:01:58]} 23. Qh3 {[%clk 0:01:53]}  Rh8 {[%clk 0:01:51]} 24. Qg3+ {[%clk 0:01:53]}  Kf6 {[%clk 0:01:52]} 25. e4 {[%clk 0:01:30]}  Bc7 {[%clk 0:01:39]} 26. Qe3 {[%clk 0:01:07]}  Bxh2+ {[%clk 0:01:23]} 27. Kf1 {[%clk 0:01:06]}  Bc4+ {[%clk 0:01:24]} 28. Bd3 {[%clk 0:01:05]}  Be5 {[%clk 0:01:02]} 29. Bxc4 {[%clk 0:00:58]}  Rh1+ {[%clk 0:01:02]} 30. Ke2 {[%clk 0:00:58]}  bxc4 {[%clk 0:01:01]} 31. Rxd8 {[%clk 0:00:43]}  Qxd8 {[%clk 0:01:02]} 32. Rxc4 {[%clk 0:00:40]}  f4 {[%clk 0:00:58]} 33. Qd3 {[%clk 0:00:34]}  Rxe1+ {[%clk 0:00:55]} 34. Kxe1 {[%clk 0:00:30]}  Qxd3 {[%clk 0:00:53]} 35. Rc8 {[%clk 0:00:26]}  Qxe4+ {[%clk 0:00:51]} 36. Kf1 {[%clk 0:00:25]}  Qd3+ {[%clk 0:00:47]} 37. Kg1 {[%clk 0:00:24]}  Qd1+ {[%clk 0:00:42]} 38. Kh2 {[%clk 0:00:24]}  f3+ {[%clk 0:00:43]} 39. g3 {[%clk 0:00:17]}  Qf1 {[%clk 0:00:39]} 40. Rc4 {[%clk 0:00:16]}  Qg2# {[%clk 0:00:31]} 0-1


[Site "https://www.chess.com"]